bitfinex-derivatives/quotes_ETHF0:USTF0_20250831
["timestamp","ask_amount","ask_price","bid_price","bid_amount"]
[1756668322089,3.2078,4474.7,4473.3,3.61267031]
[1756668322290,0.2934,4474.6,4473.3,3.61267031]
[1756668322493,3.2078,4474.7,4473.3,3.61267031]
[1756668322694,0.2934,4474.6,4473.3,3.61267031]
[1756668323393,3.2078,4474.7,4473.3,3.61267031]
[1756668323896,0.4944,4474.2,4474.1,3.2078]
[1756668324094,0.4944,4474.2,4474.1,3.4328]
[1756668327096,0.4944,4474.2,4474.1,3.4336]
[1756668332106,0.4944,4474.2,4474.1,3.4844]
[1756668333402,4.71791001,4474.2,4474.1,0.0508]
[1756668333606,4.71791001,4474.2,4473.1,3.2899]
[1756668333607,0.201,4473.2,4473.1,3.2899]
[1756668333810,0.4944,4473.2,4473.1,3.5662]
[1756668341304,0.4944,4473.2,4473.1,3.4328]
[1756668346704,0.4944,4473.2,4473.1,3.2078]
[1756668348610,0.4944,4473.2,4473.1,3.2591]
[1756668348806,0.4944,4473.2,4473.1,3.3412]
[1756668351712,0.4944,4473.2,4473.1,0.1334]
[1756668351912,0.4944,4473.2,4473.1,0.0821]
[1756668352611,0.4944,4473.2,4473.1,0.1334]
[1756668359916,0.4944,4473.2,4473.1,0.1959]
[1756668360312,0.2941,4473.6,4473.1,4.1446]
[1756668360613,0.2941,4473.6,4473.5,0.1334]
[1756668360818,0.4841,4473.6,4473.5,0.1334]
[1756668362008,3.2078,4473.7,4473.6,0.0513]
[1756668362207,3.3978,4473.7,4473.6,0.1334]
[1756668362818,3.6919,4473.7,4473.6,0.1334]
[1756668363819,3.6919,4473.7,4473.3,0.0507]
[1756668364218,3.6919,4473.7,4473.2,0.225]
[1756668364418,3.6919,4473.7,4473.4,0.0507]
[1756668365724,0.19,4473.2,4473.1,3.4022]
[1756668365917,0.4841,4473.2,4473.1,3.4022]
[1756668377521,0.4841,4473.2,4473.1,0.0625]
[1756668382429,7.6919,4473.2,4473.1,0.0625]
[1756668382635,8.27009395,4473.2,4473.1,0.0625]
[1756668383836,8.27009395,4473.2,4473.1,0.01347993]
[1756668384036,8.27009395,4473.2,4472.1,3.4328]
[1756668384037,7.97599395,4473.2,4472.1,3.2589]
[1756668384336,0.4722,4472.2,4472.1,3.3406]
[1756668385230,0.4722,4472.2,4472.1,3.2078]
[1756668385633,0.4722,4471.7,4471.6,3.2589]
[1756668385831,0.4722,4471.7,4471.6,3.3406]
[1756668392034,0.4722,4471.7,4471.6,0.1328]
[1756668398834,0.2901,4472.4,4471.7,0.0509]
[1756668399031,0.4918,4471.8,4471.7,0.2759]
[1756668400042,0.4918,4471.8,4471.7,0.3574]
[1756668402441,0.2901,4471.8,4471.7,0.3574]
[1756668402642,0.2901,4472.4,4471.8,0.0509]
[1756668403145,0.4918,4471.9,4471.8,0.1324]
[1756668411346,0.4918,4471.9,4471.7,0.225]
[1756668411848,0.4918,4471.9,4471.7,0.2759]
[1756668413148,0.4918,4471.9,4471.5,3.2078]
[1756668413447,0.4918,4471.6,4471.5,3.4328]
[1756668415148,0.4918,4471.6,4471.5,3.2078]
[1756668415348,0.4918,4471.6,4471.5,3.4328]
[1756668417448,0.4918,4471.6,4471.5,3.4837]
[1756668417650,0.4918,4471.6,4471.5,3.5652]
[1756668419353,0.4918,4471.6,4471.2,0.0135]
[1756668419550,0.4918,4471.6,4471.3,0.225]
[1756668420044,0.4918,4471.6,4471.5,0.1324]
[1756668423454,0.4918,4471.6,4471.3,0.225]
[1756668424854,0.4918,4471.6,4471.2,0.0509]
[1756668425153,0.4918,4471.6,4471.2,0.2759]
[1756668425454,0.4918,4471.6,4471.5,0.1324]
[1756668431048,0.4918,4471.6,4471.3,3.2725]
[1756668431357,0.4904,4471.4,4471.3,3.4463]
[1756668433756,0.4904,4471.4,4471.3,3.4975]
[1756668434158,0.4904,4471.4,4471.3,3.2725]
[1756668434358,0.4904,4471.4,4471.3,3.5794]
[1756668435057,0.4904,4471.4,4471.3,3.2213]
[1756668435257,0.4904,4471.4,4471.3,3.4463]
[1756668435858,0.4904,4471.4,4471.3,3.4975]
[1756668436048,0.4904,4471.4,4471.3,3.5794]
[1756668441465,0.4904,4471.4,4471.3,3.3544]
[1756668441673,0.4904,4471.4,4471.3,3.5794]
[1756668448274,0.3029,4471.4,4471.3,3.5794]
[1756668450274,0.4904,4471.4,4471.3,3.5794]
[1756668457474,0.3029,4471.4,4471.3,3.5794]
[1756668457678,3.2078,4472.3,4471.4,0.0509]
[1756668457679,0.3029,4472.2,4471.4,0.0509]
[1756668457879,1.04316242,4472.1,4472.0,0.1333]
[1756668458071,1.26677242,4472.1,4472.0,0.02903354]
[1756668458271,1.26677242,4472.1,4471.5,0.225]
[1756668458472,0.79878242,4472.0,4471.5,0.225]
[1756668458778,0.4793,4471.8,4471.5,0.225]
[1756668458978,0.77396242,4471.7,4471.5,0.225]
[1756668459178,0.4793,4471.6,4471.5,0.225]
[1756668461982,0.2805,4471.6,4471.5,0.225]
[1756668462181,0.2805,4471.9,4471.5,0.225]
[1756668462381,3.2078,4472.3,4471.5,0.225]
[1756668462679,0.1988,4471.7,4471.6,0.225]
[1756668462880,0.4793,4471.7,4471.6,0.225]
[1756668464582,0.4793,4471.7,4471.6,0.2385]
[1756668466583,0.4793,4471.7,4471.6,0.0135]
[1756668486894,0.4793,4471.7,4471.6,0.2385]
[1756668497301,0.4793,4471.7,4471.6,0.0135]
[1756668498306,0.4793,4471.7,4471.3,0.225]
[1756668498307,1.2771999,4471.7,4471.1,0.225]
[1756668498608,0.4906,4471.2,4471.1,0.225]
[1756668501610,0.4906,4471.2,4471.1,0.224]
[1756668503817,0.1961,4471.2,4470.8,3.2078]
[1756668504016,0.4906,4470.9,4470.8,3.43146]
[1756668504217,0.4906,4470.9,4470.8,3.65546]
[1756668504704,0.4906,4470.9,4470.8,3.4318]
[1756668507616,3.2078,4471.8,4470.8,3.65546999]
[1756668507817,0.2945,4471.6,4470.8,3.65546999]
[1756668508006,0.2945,4471.7,4470.8,3.65546999]
[1756668508212,3.2078,4471.8,4470.8,3.65546999]
[1756668508411,0.2945,4471.6,4470.8,3.65546999]
[1756668508620,3.2078,4471.8,4470.8,3.65546999]
[1756668508916,0.57371142,4471.7,4470.8,3.65546999]
[1756668509119,3.2078,4472.3,4470.8,3.65546999]
[1756668509415,0.2945,4472.0,4470.8,3.65546999]
[1756668509614,0.2945,4471.8,4471.3,3.2078]
[1756668509821,0.4906,4471.5,4471.4,0.224]
[1756668510116,0.2945,4471.5,4471.4,0.224]
[1756668514225,0.4906,4471.5,4471.4,0.224]
[1756668522037,0.4906,4471.5,4471.3,3.2078]
[1756668522038,0.3011,4471.4,4471.3,3.2078]
[1756668522234,0.4892,4471.4,4471.3,3.4318]
[1756668528139,0.4892,4471.4,4471.3,3.2078]
[1756668528343,0.4892,4471.4,4471.3,3.4318]
[1756668532546,0.3011,4471.4,4471.3,3.4318]
[1756668534444,3.2078,4472.3,4471.3,3.4318]
[1756668534647,0.3011,4472.1,4471.3,3.4318]
[1756668534945,1.19813052,4473.2,4472.0,3.2078]
[1756668534946,0.3011,4473.2,4472.0,3.2078]
[1756668535147,0.57454129,4473.1,4472.5,3.2078]
[1756668535345,0.4892,4473.2,4472.6,0.224]
[1756668535744,0.4892,4473.2,4472.6,0.40022961]
[1756668535941,0.3011,4473.2,4472.6,0.40022961]
[1756668536249,0.3011,4473.2,4472.6,0.224]
[1756668536250,0.4892,4473.2,4472.6,0.224]
[1756668537045,0.3011,4473.2,4472.6,0.40507355]
[1756668537348,3.2078,4473.8,4473.1,3.2078]
[1756668537549,0.4892,4473.7,4473.2,0.224]
[1756668538054,0.4892,4473.4,4473.3,0.224]
[1756668538845,3.2078,4473.8,4473.3,0.224]
[1756668539044,0.1881,4473.4,4473.3,0.224]
[1756668539245,0.4892,4473.4,4473.3,0.224]
[1756668539456,0.4892,4473.4,4473.1,3.2078]
[1756668539754,0.4892,4473.3,4473.2,0.224]
[1756668541150,0.1881,4473.3,4473.2,0.224]
[1756668541344,0.4892,4473.3,4473.2,0.224]
[1756668545358,0.3011,4474.6,4473.2,0.224]
[1756668545656,0.52462,4474.6,4473.2,0.224]
[1756668545859,3.2078,4474.8,4473.6,3.2078]
[1756668546153,0.52461001,4474.7,4473.7,0.224]
[1756668546657,0.3011,4474.7,4473.7,0.224]
[1756668546854,0.1881,4474.4,4474.3,3.2078]
[1756668547054,0.4892,4474.4,4474.3,3.4318]
[1756668550457,0.4823,4474.4,4474.3,3.4318]
[1756668552062,0.2904,4475.2,4474.3,3.4318]
[1756668552265,3.2078,4475.3,4474.3,3.4318]
[1756668552858,0.4823,4475.0,4474.9,3.2078]
[1756668553062,0.4823,4475.0,4474.9,3.4318]
[1756668557865,0.4823,4475.0,4474.9,3.2078]
[1756668558071,0.1919,4475.0,4474.9,0.224]
[1756668558366,0.4823,4475.0,4474.9,0.224]
[1756668560072,0.1919,4474.5,4474.4,3.2078]
[1756668560266,0.1919,4474.5,4474.4,3.4318]
[1756668560570,0.4823,4474.5,4474.4,3.4318]
[1756668562772,0.4823,4474.5,4474.4,0.224]
[1756668563474,0.4823,4474.0,4473.9,3.2078]
[1756668563672,0.4823,4474.0,4473.9,3.4318]
[1756668566472,0.4823,4474.0,4473.9,3.2078]
[1756668566677,0.4823,4474.0,4473.9,3.4318]
[1756668568074,0.4823,4474.0,4473.9,3.2078]
[1756668568379,0.4823,4474.0,4473.9,3.4318]
[1756668568681,0.4823,4474.0,4473.9,3.2078]
[1756668568876,0.4823,4474.0,4473.9,3.4318]
[1756668572079,5.31542,4474.0,4472.4,2.00894038]
[1756668572284,0.1035,4472.3,4472.2,2.29004038]
[1756668572580,0.0637,4471.9,4471.8,0.4831]
[1756668573074,0.68480622,4471.9,4471.8,0.4831]
[1756668573279,0.0398,4471.8,4470.9,0.2811]
[1756668573473,0.1035,4471.0,4470.9,0.4831]
[1756668573672,0.29923792,4471.0,4470.9,0.4831]
[1756668575585,0.25943792,4471.0,4470.9,0.4831]
[1756668575782,0.19573792,4471.0,4470.9,0.4831]
[1756668581386,0.1942672,4471.0,4470.9,0.4831]
[1756668582388,0.19420875,4471.0,4470.9,0.4831]
[1756668592189,0.0389,4471.3,4470.9,0.202]
[1756668592388,0.21018946,4471.2,4471.0,0.298]
[1756668592590,0.21018946,4471.1,4471.0,0.5006]
[1756668600393,0.21018946,4471.1,4471.0,4.72426]
[1756668600589,3.2078,4472.1,4471.1,0.40255]
[1756668600794,3.2078,4472.1,4472.0,0.5006]
[1756668600998,4.03990262,4472.1,4472.0,0.5006]
[1756668601195,4.22350262,4472.1,4472.0,0.5006]
[1756668602398,4.22350262,4472.1,4472.0,0.28251042]
[1756668602592,4.22350262,4472.1,4472.0,0.48511042]
[1756668610521,3.97440262,4472.1,4471.9,0.3396]
[1756668610821,1.05570262,4472.0,4471.9,0.3396]
[1756668611621,1.05570262,4472.0,4471.9,0.0508]
[1756668612709,1.25743679,4472.0,4471.9,0.0508]
[1756668614421,1.25743679,4472.0,4471.9,0.3396]
[1756668614616,1.25743679,4472.0,4471.9,0.5233]
[1756668615314,1.48243679,4472.0,4471.9,0.5233]
[1756668617413,5.70605679,4472.0,4471.0,3.2078]
[1756668617619,0.4727,4470.6,4470.5,0.0632]
[1756668617915,0.67443417,4470.6,4470.0,3.2078]
[1756668618116,0.226,4470.8,4470.4,0.4725]
[1756668618117,0.39653417,4470.5,4470.4,0.4725]
[1756668618421,0.67443417,4470.5,4470.4,0.4725]
[1756668618622,0.6670276,4470.5,4470.4,0.4725]
[1756668619618,0.1943276,4470.5,4470.4,0.4725]
[1756668621212,0.1943276,4470.5,4470.4,4.4725]
[1756668621409,0.1943276,4470.5,4470.4,0.4725]
[1756668621621,0.6670276,4470.5,4470.4,0.4725]
[1756668621920,0.6670276,4470.5,4470.4,0.6985]
[1756668622116,0.3891276,4470.5,4470.4,0.6985]
[1756668622420,0.1943276,4470.5,4470.4,0.6985]
[1756668623217,0.2779,4470.8,4470.4,0.6985]
[1756668623421,0.19430449,4470.7,4470.5,0.2888]
[1756668623624,0.19430449,4470.6,4470.5,0.4725]
[1756668624219,0.47220449,4470.6,4470.5,0.4725]
[1756668624422,0.66700449,4470.6,4470.5,0.4725]
[1756668630514,0.66335143,4470.6,4470.5,0.4725]
[1756668631916,0.66335177,4470.6,4470.5,0.4725]
[1756668633311,0.38545177,4470.6,4470.5,0.4725]
[1756668633917,0.19065177,4470.6,4470.5,8.0829]
[1756668634121,0.19065177,4470.6,4470.5,7.6803]
[1756668634426,0.19067841,4470.6,4470.5,8.12999]
[1756668635025,0.19063616,4470.6,4470.5,8.12999]
[1756668635824,0.19063616,4470.6,4470.5,7.9063]
[1756668636424,0.19063616,4470.6,4470.5,8.3089]
[1756668639531,0.19063616,4470.6,4470.5,4.3089]
[1756668639731,0.19063616,4470.6,4470.5,8.3089]
[1756668640426,0.4927,4471.6,4471.5,0.1832]
[1756668640627,0.68340621,4471.6,4471.5,0.4775]
[1756668644130,0.4927,4471.5,4471.4,0.4775]
[1756668644331,0.68340621,4471.5,4471.4,0.4775]
[1756668644926,0.4927,4471.5,4471.4,0.4775]
[1756668645130,0.6812185,4471.5,4471.4,0.4775]
[1756668647729,0.6812185,4471.5,4471.4,0.2943]
[1756668648130,0.6812185,4471.5,4471.4,0.4775]
[1756668653632,0.6812185,4471.5,4471.2,0.2943]
[1756668653833,0.4927,4471.1,4470.8,0.226]
[1756668654038,0.4818185,4471.0,4470.9,0.2943]
[1756668654337,0.6812185,4471.0,4470.9,0.2943]
[1756668655536,0.6812185,4471.0,4470.9,0.4775]
[1756668655737,0.68128307,4471.0,4470.9,0.4775]
[1756668656240,0.68129516,4471.0,4470.9,0.4775]
[1756668659337,0.4927,4471.0,4470.9,0.4775]
[1756668659542,0.68137752,4471.0,4470.9,0.4775]
[1756668665247,0.68152682,4471.0,4470.9,0.4775]
[1756668666547,0.18882682,4471.0,4470.9,0.4775]
[1756668668244,0.18882682,4471.0,4470.9,4.4775]
[1756668668448,0.18882682,4471.0,4470.9,4.88006]
[1756668676253,0.18875428,4471.0,4470.9,4.87946]
[1756668677552,0.18875428,4471.0,4470.9,0.87946]
[1756668679054,0.4828,4472.0,4471.9,0.4823]
[1756668679250,0.4828,4472.0,4471.9,3.9151]
[1756668679952,4.4828,4472.0,4471.9,3.2078]
[1756668681355,0.4828,4472.0,4471.9,3.6901]
[1756668682054,0.4828,4472.0,4471.9,3.5015]
[1756668683152,0.4828,4472.0,4471.9,3.6901]
[1756668683355,0.4828,4472.0,4471.9,3.9151]
[1756668685059,0.4828,4472.0,4471.9,3.4328]
[1756668685752,0.4828,4472.0,4471.9,3.2078]
[1756668685948,0.4828,4472.0,4471.9,3.4328]
[1756668687559,0.2972,4472.7,4471.9,3.6214]
[1756668687760,0.1856,4472.1,4472.0,0.4823]
[1756668687958,0.4828,4472.1,4472.0,0.4823]
[1756668688158,0.4828,4472.1,4472.0,0.7073]
[1756668690255,0.2972,4472.4,4472.0,0.7073]
[1756668690456,0.2972,4472.7,4472.1,0.2937]
[1756668690657,0.4828,4472.5,4472.4,0.1886]
[1756668690858,0.66614249,4472.5,4472.4,0.4823]
[1756668692961,0.18334249,4472.5,4472.4,0.4823]
[1756668693259,3.2078,4472.8,4472.4,0.1886]
[1756668693562,3.2078,4472.8,4472.7,0.4823]
[1756668693871,3.505,4472.8,4472.7,0.4823]
[1756668694458,3.6906,4472.8,4472.7,0.4823]
[1756668694665,3.3934,4472.8,4472.7,0.4823]
[1756668694967,3.2078,4472.8,4472.7,0.4823]
[1756668695558,0.4828,4472.8,4472.7,0.4823]
[1756668698870,0.4828,4472.8,4472.7,0.7111]
[1756668701576,0.4828,4472.8,4472.7,0.4861]
[1756668701777,0.4838,4472.8,4472.7,0.225]
[1756668701977,0.4838,4472.8,4472.7,0.2881]
[1756668702278,0.4838,4472.8,4472.7,0.5723]
[1756668702976,0.4838,4472.8,4472.7,0.0631]
[1756668705081,0.1953,4472.0,4471.9,0.161]
[1756668705282,0.4935,4472.0,4471.9,0.161]
[1756668707880,0.1953,4471.7,4470.9,3.2078]
[1756668708075,0.1953,4471.1,4471.0,0.4766]
[1756668708275,0.1953,4471.1,4470.9,3.2078]
[1756668708482,0.4935,4470.9,4470.8,0.5092]
[1756668709481,0.4935,4470.9,4470.8,0.7016]
[1756668721890,0.4935,4471.4,4471.3,0.1924]
[1756668722092,0.4935,4471.4,4471.3,0.4766]
[1756668724691,3.7013,4471.9,4471.8,0.4766]
[1756668725096,3.7013,4471.9,4471.8,0.1924]
[1756668725297,3.7013,4471.9,4471.3,0.2842]
[1756668725689,3.7013,4471.9,4471.8,0.1924]
[1756668725895,3.7013,4471.9,4471.8,0.4766]
[1756668728091,3.7013,4471.9,4471.3,0.2879]
[1756668729792,3.7013,4471.9,4470.4,3.2078]
[1756668729793,0.22363,4471.8,4470.5,0.2879]
[1756668729996,0.22363,4471.8,4470.5,0.4746]
[1756668729997,0.4924,4470.6,4470.5,0.4746]
[1756668730296,0.4924,4471.3,4471.2,0.4746]
[1756668747313,1.0770657,4471.3,4471.2,0.4746]
[1756668747713,0.4924,4471.3,4471.2,0.4746]
[1756668747913,1.07706519,4471.3,4471.2,0.4746]
[1756668749213,0.4924,4471.3,4471.2,0.4746]
[1756668749712,1.07709135,4471.3,4471.2,0.4746]
[1756668750713,0.4924,4471.3,4471.2,0.4746]
[1756668757220,1.07725434,4471.3,4471.2,0.4746]
[1756668759325,1.07725434,4471.3,4471.2,0.45417677]
[1756668768636,0.304,4471.2,4470.5,0.2949]
[1756668768836,0.4989,4470.6,4470.5,0.4926]
[1756668769033,0.4989,4470.6,4470.5,0.7176]
[1756668769435,0.4989,4470.6,4470.5,0.4926]
[1756668769827,0.4989,4470.6,4470.5,0.7176]
[1756668771630,0.304,4471.3,4470.5,0.4227]
[1756668771837,1.08139413,4471.2,4471.1,0.4926]
[1756668776941,0.304,4471.1,4470.7,0.225]
[1756668777143,0.4989,4470.8,4470.7,0.7176]
[1756668777442,0.4989,4470.8,4470.7,0.94126]
[1756668777942,0.4989,4470.8,4470.7,0.7176]
[1756668778344,0.4989,4470.8,4470.7,0.4926]
[1756668778643,0.4989,4470.8,4470.7,0.7176]
[1756668783743,3.2078,4471.4,4470.8,0.2949]
[1756668783946,0.4989,4471.3,4471.2,0.4926]
[1756668784141,0.4989,4471.8,4471.7,0.4926]
[1756668784442,0.4989,4471.1,4471.0,5.371]
[1756668786043,0.4989,4471.1,4471.0,5.5687]
[1756668786245,0.4989,4471.1,4471.0,5.7575]
[1756668786745,0.4989,4471.1,4471.0,5.9825]
[1756668787246,0.4989,4471.1,4471.0,0.6115]
[1756668787941,0.4989,4471.1,4471.0,0.3865]
[1756668788140,0.4989,4471.1,4471.0,0.6115]
[1756668791048,0.4989,4471.1,4471.0,0.3865]
[1756668795952,0.2924,4471.8,4471.0,0.1977]
[1756668796148,1.07502914,4471.7,4471.6,0.3907]
[1756668796344,0.78262914,4471.7,4470.8,3.2078]
[1756668796545,0.2924,4471.5,4470.9,0.44865]
[1756668796748,3.2078,4471.9,4470.9,0.44865]
[1756668796949,0.87445907,4471.8,4471.0,0.22364]
[1756668797150,0.58205907,4471.7,4471.0,0.22364]
[1756668797350,0.87445907,4471.6,4470.9,0.225]
[1756668797553,0.2924,4471.6,4471.0,0.22364]
[1756668797949,0.2924,4471.6,4470.9,0.225]
[1756668798149,0.2924,4471.6,4471.0,0.22365]
[1756668798653,0.2924,4471.6,4470.9,0.225]
[1756668798950,3.2078,4471.9,4470.9,0.44865]
[1756668799151,0.58196562,4471.8,4470.9,0.44865]
[1756668799351,0.58196562,4471.7,4470.9,0.44865]
[1756668799552,0.58196562,4471.6,4470.9,0.44865]
[1756668799755,3.2078,4471.9,4470.9,0.44865]
[1756668799954,0.58193578,4471.8,4470.9,0.44865]
[1756668800154,0.2924,4471.6,4470.9,0.44865]
[1756668800349,3.2078,4471.9,4470.9,0.44865]
[1756668800551,0.58191884,4471.8,4470.9,0.44865]
[1756668800752,0.58191884,4471.7,4470.9,0.44865]
[1756668800955,0.2924,4471.5,4470.9,0.44865]
[1756668801155,3.2078,4471.9,4470.9,0.44865]
[1756668801356,0.58191171,4471.8,4470.9,0.44865]
[1756668801659,0.58191171,4471.7,4470.9,0.44865]
[1756668801861,0.58191171,4471.6,4470.9,0.44865]
[1756668802053,0.2924,4471.8,4470.9,0.44865]
[1756668802258,0.58190541,4471.7,4470.9,0.44865]
[1756668802457,0.58190541,4471.6,4470.9,0.44865]
[1756668802760,0.2924,4471.8,4470.9,0.225]
[1756668803060,0.2924,4471.6,4470.9,0.44864]
[1756668803362,3.2078,4471.9,4470.9,0.44864]
[1756668803553,0.2924,4471.7,4470.9,0.44864]
[1756668803754,3.2078,4471.9,4470.9,0.44864]
[1756668803952,0.2005,4471.7,4471.3,3.2078]
[1756668804153,0.2924,4471.6,4471.4,0.225]
[1756668804352,0.2924,4471.5,4471.4,0.225]
[1756668809961,0.4929,4471.5,4471.4,0.225]
[1756668812464,0.4929,4471.4,4471.3,3.2078]
[1756668812660,0.4929,4471.4,4471.3,3.4328]
[1756668827574,0.4929,4471.4,4471.3,0.225]
[1756668827777,0.4929,4471.4,4471.3,3.4328]
[1756668829076,0.4929,4471.4,4471.3,3.2078]
[1756668837876,0.2924,4471.4,4471.3,3.2078]
[1756668842878,3.2078,4472.4,4471.3,3.2078]
[1756668843086,1.05629057,4472.3,4471.4,0.225]
[1756668843273,0.2916,4472.1,4471.4,0.225]
[1756668843584,0.4752,4472.1,4471.4,0.225]
[1756668844486,0.2916,4472.1,4471.4,0.225]
[1756668844687,0.2916,4472.5,4471.5,0.40251]
[1756668844987,3.2078,4472.9,4471.5,0.40251]
[1756668844988,0.2916,4472.8,4472.1,3.2078]
[1756668845185,0.2916,4472.8,4472.2,0.225]
[1756668845987,1.42313052,4474.1,4472.2,0.225]
[1756668845988,0.2916,4473.2,4472.6,3.2078]
[1756668846192,0.1836,4473.2,4472.7,0.225]
[1756668846392,0.1836,4473.1,4472.7,0.225]
[1756668846588,3.2078,4473.4,4472.7,0.225]
[1756668846788,0.4752,4473.3,4472.7,0.225]
[1756668850790,0.2916,4473.3,4472.8,0.22355999]
[1756668851191,3.2078,4474.4,4473.1,3.2078]
[1756668851388,0.2864,4474.3,4473.2,0.225]
[1756668852192,0.2864,4474.3,4473.3,0.22353]
[1756668852687,3.2078,4474.9,4473.6,3.2078]
[1756668852889,0.2864,4474.8,4473.7,0.225]
[1756668854995,0.2864,4475.3,4473.7,0.44849999]
[1756668855197,0.2864,4475.2,4473.7,0.44849999]
[1756668855398,0.2864,4475.3,4473.7,0.225]
[1756668855589,0.2864,4475.1,4473.8,0.22349]
[1756668855994,0.2864,4475.3,4474.1,3.2078]
[1756668856194,0.2864,4475.3,4474.2,0.225]
[1756668856398,3.2078,4475.4,4474.2,0.44847999]
[1756668856603,0.2864,4475.3,4474.2,0.225]
[1756668858490,0.4841,4474.2,4474.1,3.2078]
[1756668859001,0.4841,4474.2,4474.1,3.4328]
[1756668861991,0.4841,4474.2,4474.1,3.2078]
[1756668862195,0.4841,4474.2,4474.1,3.4328]
[1756668862401,0.2864,4474.2,4474.1,3.4328]
[1756668862902,0.4841,4474.2,4474.1,3.4328]
[1756668863500,0.4841,4474.2,4473.6,3.2078]
[1756668863705,0.2864,4474.0,4473.7,0.225]
[1756668863904,0.5099,4474.8,4473.7,0.225]
[1756668864310,0.2235,4474.7,4473.7,0.225]
[1756668864605,0.2864,4474.8,4473.7,0.225]
[1756668865110,0.5099,4474.8,4473.7,0.225]
[1756668871508,0.4841,4473.7,4473.6,3.2078]
[1756668871716,0.4841,4473.7,4473.6,3.4328]
[1756668872104,0.2864,4473.7,4473.6,3.4328]
[1756668873216,0.4841,4473.7,4473.6,3.4328]
[1756668886920,0.4841,4473.7,4473.6,3.2078]
[1756668887314,0.4841,4473.7,4473.6,3.4328]
[1756668890116,0.4841,4473.7,4473.6,3.2078]
[1756668890317,0.4841,4473.7,4473.6,3.4328]
[1756668891619,0.4946,4474.8,4473.6,3.4328]
[1756668891823,0.4946,4474.7,4473.6,3.83512]
[1756668892124,0.4946,4474.6,4473.7,0.40231]
[1756668892318,0.4946,4474.6,4473.8,0.225]
[1756668893722,0.203,4474.6,4474.1,3.2078]
[1756668893917,0.2916,4475.3,4474.2,0.225]
[1756668894121,0.2916,4475.1,4474.2,0.225]
[1756668894321,0.2916,4474.9,4474.2,0.225]
[1756668894817,0.203,4474.4,4474.3,0.225]
[1756668895019,0.4946,4474.4,4474.3,0.225]
[1756668899023,0.203,4474.4,4474.3,0.225]
[1756668899227,0.4946,4474.4,4474.3,0.225]
[1756668900232,0.203,4474.2,4474.1,3.2078]
[1756668900434,0.4946,4474.2,4474.1,3.4328]
[1756668902833,0.4946,4474.2,4474.1,3.2078]
[1756668903033,0.4946,4474.2,4474.1,3.4328]
[1756668907032,0.4946,4474.2,4474.1,3.2078]
[1756668907336,4.71811001,4474.2,4474.0,0.2757]
[1756668907537,1.07570952,4474.1,4474.0,0.2757]
[1756668909137,0.4946,4474.1,4474.0,0.2757]
[1756668910227,0.4946,4474.1,4474.0,0.0507]
[1756668910433,4.71811001,4474.1,4473.2,0.0632]
[1756668910628,0.1922,4473.3,4473.2,0.0632]
[1756668910838,0.4703,4473.3,4473.1,0.225]
[1756668911435,0.1922,4473.3,4473.2,0.0546]
[1756668911641,0.2781,4473.6,4473.2,0.0336]
[1756668911841,0.4703,4473.6,4473.5,0.0546]
[1756668912043,0.4703,4473.6,4473.5,0.2796]
[1756668913436,0.2781,4473.6,4473.5,0.2796]
[1756668913644,0.2781,4474.3,4473.6,0.021]
[1756668913944,0.4703,4474.2,4474.1,0.0546]
[1756668917441,0.4703,4474.2,4473.7,0.021]
[1756668917746,0.4703,4474.2,4473.8,0.225]
[1756668919748,0.1922,4473.4,4473.3,3.2288]
[1756668919948,0.4703,4473.4,4473.3,3.4538]
[1756668920548,0.4703,4473.4,4473.3,3.4874]
[1756668925752,0.4703,4473.4,4473.3,3.4328]
[1756668926547,0.4703,4473.4,4473.3,0.225]
[1756668926953,0.4703,4473.4,4473.3,0.2811]
[1756668931655,3.4,4474.4,4474.3,0.0345]
[1756668931858,0.4703,4474.9,4474.8,0.0345]
[1756668932064,0.4703,4474.9,4474.8,0.0561]
[1756668932752,3.2078,4475.5,4474.8,0.0561]
[1756668932946,0.4703,4475.4,4475.3,0.0345]
[1756668933351,0.4703,4475.4,4475.3,0.0561]
[1756668934757,0.4703,4475.4,4474.9,0.0216]
[1756668934953,0.1922,4475.1,4475.0,0.225]
[1756668935259,0.4703,4475.1,4475.0,0.225]
[1756668937160,0.2781,4475.0,4474.8,0.2466]
[1756668937354,0.1922,4474.9,4474.8,0.2811]
[1756668937562,0.4703,4474.9,4474.8,0.2811]
[1756668937753,3.2078,4475.5,4474.8,0.2811]
[1756668937958,0.2984,4475.5,4475.4,0.0556]
[1756668938158,0.2984,4475.5,4475.4,0.2806]
[1756668938663,0.41204,4475.8,4475.5,0.0214]
[1756668938860,0.4988,4475.7,4475.6,0.0342]
[1756668939361,0.4988,4475.7,4475.6,0.0556]
[1756668939760,0.4988,4475.7,4475.6,0.2806]
[1756668939963,0.2984,4475.7,4475.6,0.2806]
[1756668940862,0.41204,4475.8,4475.6,0.2806]
[1756668940863,0.41204,4475.8,4475.7,0.0556]
[1756668941056,0.41204,4475.8,4475.7,3.2634]
[1756668941658,0.91084,4475.8,4475.7,3.2634]
[1756668941859,0.91084,4475.8,4475.7,3.4884]
[1756668944667,0.41204,4475.8,4475.7,3.4884]
[1756668950264,3.2078,4477.3,4476.1,0.0214]
[1756668950463,0.2984,4477.2,4476.4,0.0214]
[1756668950665,0.2004,4476.7,4476.6,0.0556]
[1756668950865,0.4988,4476.7,4476.6,0.0556]
[1756668952268,0.4988,4476.7,4476.6,0.2806]